Cogmind - Beta 12 @@@ ROGUE MODE // 2023.04.04 @ 10:15:21 Player: ZLD1 Result: Destroyed by as-23379 with Assembled Heavy Rifle Performance ------------- Evolutions (1) 500 Regions Visited (4) 800 Robots Destroyed (45) 225 Value Destroyed (886) 886 Prototype IDs (6) 120 Alien Tech Used (0) 0 Bonus (0) 0 TOTAL SCORE: 2531 Bonus ------- None Cogmind --------- Core Integrity 0/400 Matter 158/300 Energy 99/100 System Corruption 0% Temperature Cool (0) Movement Core (50) Location -9/Mines Parts ------- > --- POWER (1) -------- (None) > --- PROPULSION (3) --- (None) > --- UTILITY (3) ------ Structural Scanner > --- WEAPON (2) ------- (None) > --- INVENTORY (5) ---- Cooled Ion Engine Armored Wheel Weight Redist. System ECM Suite Maul Peak State ------------ > --- POWER ------------ Cooled Ion Engine > --- PROPULSION ------- Improved Hover Unit Improved Hover Unit Improved Hover Unit > --- UTILITY ---------- Small Storage Unit Structural Scanner Propulsion Shielding > --- WEAPON ----------- Heavy Assault Rifle Improved Light Cannon > --- INVENTORY -------- Cooled Ion Engine Wheel Armored Wheel High-capacity Battery Weight Redist. System Improved Terrain Scanner ECM Suite Maul [Rating: 17] Favorites ----------- Power Light Ion Engine Engine Light Ion Engine Power Core Light Nuclear Core Propulsion Aluminum Leg Treads Light Treads Leg Aluminum Leg Wheel Wheel Hover Unit Improved Hover Unit Utility Small Storage Unit Device Structural Scanner Storage Small Storage Unit Protection Hardened Light Armor Plating Weapon Light Assault Rifle Energy Cannon Advanced Beam Cannon Ballistic Gun Light Assault Rifle Ballistic Cannon Improved Light Cannon Build | -11 -10 -10 -9 -9 ------- Run | Jun Mat Min Mat Min Slots Evolved 2 | . . . 2 . Power . | . . . . . Propulsion 1 | . . . 1 . Utility 1 | . . . 1 . Weapon . | . . . . . Parts Attached 35 | 5 6 7 17 . Power 4 | 1 1 1 1 . Engine 3 | 1 . 1 1 . Core 1 | . 1 . . . Reactor . | . . . . . Propulsion 14 | 2 2 3 7 . Treads 2 | . . . 2 . Leg 4 | 2 2 . . . Wheel 5 | . . 3 2 . Hover 3 | . . . 3 . Flight . | . . . . . Utility 7 | . 2 1 4 . Device 3 | . 1 . 2 . Storage 1 | . 1 . . . Processor . | . . . . . Hackware . | . . . . . Protection 3 | . . 1 2 . Artifact . | . . . . . Weapon 10 | 2 1 2 5 . Energy Gun . | . . . . . Energy Cannon 1 | . . . 1 . Ballistic Gun 8 | 2 1 2 3 . Ballistic Cannon 1 | . . . 1 . Launcher . | . . . . . Special Weapon . | . . . . . Impact Weapon . | . . . . . Slashing Weapon . | . . . . . Piercing Weapon . | . . . . . Special Melee Weapon . | . . . . . Unidentified Prototypes 2 | . . . 2 . Parts Lost 15 | . . 3 4 8 Power 3 | . . 1 1 1 Propulsion 6 | . . 1 2 3 Utility 4 | . . 1 1 2 Weapon 2 | . . . . 2 Highest Loss Streak 8 | . . 1 2 8 To Critical Strikes . | . . . . . Average Slot Usage (%) 93 | . 95 94 90 70 Engine 8 | . 11 6 7 7 Core 2 | . 2 4 . . Treads 2 | . . . 6 . Leg 11 | . 28 12 . . Wheel 11 | . . 14 14 . Hover 2 | . . . 6 22 Device 7 | . 14 3 10 11 Storage 12 | . 10 14 11 7 Protection 8 | . . 10 10 7 Ballistic Gun 23 | . 28 28 15 7 Ballistic Cannon 2 | . . . 6 7 Naked Turns . | . . . . . Heaviest Build 24 | 8 15 19 24 22 Greatest Support 40 | 20 20 20 40 21 Greatest Overweight (x) 3 | . . 1 3 1 Average Overweight (x) . | . . . . . Largest Inventory Capacity 8 | 5 8 8 8 8 Average Capacity 7 | 5 7 8 8 6 Most Carried 8 | 4 8 8 8 8 Average Carried 7 | 1 5 7 7 6 Final Capacity 8 | 5 8 8 8 5 Final Carried 8 | 4 8 8 8 5 Class Distribution -------------------- 56% | Mutant 43% | Scavenger-Mutant Dominant Class ---------------- Mutant | -10/Materials Scavenger-Mutant | -10/Mines Scavenger-Mutant | -9/Materials Mutant | -9/Mines Resources | -11 -10 -10 -9 -9 ----------- Run | Jun Mat Min Mat Min Matter Collected 893 | 247 119 246 265 16 Remotely . | . . . . . Salvage Created 1135 | 37 191 335 500 72 Parts 95 | 7 17 32 35 4 Haulers Intercepted . | . . . . . Recyclers Shooed 3 | . 1 . 2 . Parts Field Recycled . | . . . . . Retrieved Matter . | . . . . . Parts Self-Destructed . | . . . . . Prevented . | . . . . . Kills | -11 -10 -10 -9 -9 ------- Run | Jun Mat Min Mat Min Combat Hostiles Destroyed 37 | . 5 14 15 3 Guns 29 | . 5 14 10 . Cannons 8 | . . . 5 3 Classes Destroyed 10 | 1 3 1 3 2 Worker 1 | . . . 1 . Builder 2 | . . 1 1 . Tunneler 4 | 2 . 2 . . Recycler 1 | . 1 . . . Watcher 1 | . . . 1 . Swarmer 21 | . 3 12 6 . Grunt 8 | . 2 2 3 1 Duelist 1 | . . . . 1 Sentry 6 | . . . 6 . Assembled 1 | . . . . 1 Best Kill Streak 6 | 1 3 6 4 3 Combat Bots Only 6 | . 3 6 4 3 Max Kills in Single Turn 2 | 1 1 2 1 1 Gunslinging 1 | . . 1 . . Exploded . | . . . . . Melee . | . . . . . Uniques/NPCs Destroyed . | . . . . . Combat | -11 -10 -10 -9 -9 -------- Run | Jun Mat Min Mat Min Damage Taken 2394 | . 218 678 987 511 Core 533 | . 27 99 168 239 Absorbed by Shields . | . . . . . Redirected to Shielding 53 | . . . 23 30 Core Remaining (%) 74 | 100 . 49 . . Volleys Fired 129 | 3 14 44 61 7 Largest 2 | 2 2 2 2 2 Hottest 62 | 40 40 43 62 62 Shots Fired 256 | 6 28 86 122 14 Gun 218 | 6 28 86 91 7 Cannon 38 | . . . 31 7 Launcher . | . . . . . Special . | . . . . . Kinetic 256 | 6 28 86 122 14 Thermal . | . . . . . Explosive . | . . . . . Electromagnetic . | . . . . . Robot Hit Streak 18 | 2 16 18 13 4 Robot Miss Streak 5 | 1 2 5 3 3 Penetration Max . | . . . . . Secondary Targets 4 | . . 3 1 . Max Gunslinging Chain 1 | . . 1 1 . Shots Hit Robots 167 | 3 22 50 85 7 Core Hits 70 | 3 11 24 27 5 Critical Kills 1 | . . 1 . . Critical Parts Destroyed 1 | . . . 1 . Critical Strikes 3 | . . 1 2 . Destroy 2 | . . 1 1 . Blast 1 | . . . 1 . Melee Attacks . | . . . . . Impact . | . . . . . Slashing . | . . . . . Piercing . | . . . . . Sneak Attacks . | . . . . . Combat Hostiles . | . . . . . Follow-up Attacks . | . . . . . Damage Inflicted 2331 | 30 226 659 1260 156 Guns 1675 | 30 226 591 758 70 Cannons 527 | . . . 448 79 Explosions . | . . . . . Melee . | . . . . . Ramming 129 | . . 68 54 7 Kinetic 2202 | 30 226 591 1206 149 Thermal . | . . . . . Explosive . | . . . . . Electromagnetic . | . . . . . Impact . | . . . . . Slashing . | . . . . . Piercing . | . . . . . Highest Corruption 8 | . 6 8 . . Average Corruption 6 | . 5 6 . . Corruption Purged . | . . . . . Corruption Blocked . | . . . . . Effects 32 | . 4 28 . . Message Errors 8 | . 1 7 . . Matter Fused 4 | . 1 3 . . Energy Discharges 4 | . . 4 . . Data Loss (minor) 9 | . . 9 . . Data Loss (major) 3 | . . 3 . . Misfires 1 | . 1 . . . Weapon Failures 3 | . 1 2 . . Overload Shots . | . . . . . Overflow Damage 15 | . . . 15 . Projectiles 15 | . . . 15 . Explosions . | . . . . . Melee . | . . . . . Knockbacks 2 | . . . 2 . Impact . | . . . . . Kinetic 2 | . . . 2 . Secondary . | . . . . . Self-Inflicted Damage 53 | . . 25 25 3 Shots . | . . . . . Rammed 25 | . . 12 10 3 Targets Rammed 31 | . . 18 10 3 Kicked 6 | . . 6 . . Crushed . | . . . . . Highest Temperature 55 | . 30 21 40 55 Average Temperature 8 | . 12 3 9 21 Received Heat Transfer 587 | . 87 9 333 158 Siege Activations . | . . . . . Robots Corrupted . | . . . . . Combat Hostiles . | . . . . . Parts Fried . | . . . . . Impact Corruptions . | . . . . . Robots Melted . | . . . . . Combat Hostiles . | . . . . . Parts Melted . | . . . . . Heat Transferred . | . . . . . Parts Sabotaged . | . . . . . Parts Stolen . | . . . . . Parts Stripped . | . . . . . Power Chain Reactions . | . . . . . Missiles Intercepted . | . . . . . Alert | -11 -10 -10 -9 -9 ------- Run | Jun Mat Min Mat Min Peak Influence 315 | 10 181 315 286 163 Initial 111 | . 6 70 19 111 Average 137 | 3 67 165 161 130 Maximum Alert Level 1 | . . 1 1 . Low Security (%) 80 | 100 100 86 55 100 Level 1 19 | . . 13 44 . Level 2 . | . . . . . Level 3 . | . . . . . Level 4 . | . . . . . Level 5 . | . . . . . High Security . | . . . . . Max Security . | . . . . . Squads Dispatched 3 | . . . 3 . Investigation . | . . . . . Extermination . | . . . . . Reinforcement 3 | . . . 3 . Assault . | . . . . . Garrison . | . . . . . Intercept . | . . . . . Searches Triggered . | . . . . . Construction Impeded . | . . . . . Haulers Reinforced . | . . . . . Active Scanning Responses . | . . . . . Cargo Convoy Interrupts . | . . . . . Stealth | -11 -10 -10 -9 -9 --------- Run | Jun Mat Min Mat Min Distress Signals 3 | . . . 3 . Communications Jammed . | . . . . . Distress Signals . | . . . . . Times Spotted 65 | . 10 15 24 16 Peak Tracking Total 14 | . 3 5 5 14 Tactical Retreats 1 | . . 1 . . Traps | -11 -10 -10 -9 -9 ------- Run | Jun Mat Min Mat Min Traps Triggered 4 | . 4 . . . Indirectly . | . . . . . Trap Hack Attempts . | . . . . . Triggered . | . . . . . Disarmed . | . . . . . Reprogrammed . | . . . . . Reused . | . . . . . Traps Extracted . | . . . . . Installed 1 | . . . 1 . Triggered . | . . . . . Most Traps Carried 1 | . . 1 1 . Machines | -11 -10 -10 -9 -9 ---------- Run | Jun Mat Min Mat Min Machines Disabled . | . . . . . Max in Single Turn . | . . . . . Machines Repaired . | . . . . . Machines Sabotaged . | . . . . . Overloaded Fab Kills . | . . . . . Hacking | -11 -10 -10 -9 -9 --------- Run | Jun Mat Min Mat Min Machines Accessed 2 | . 2 . . . Terminals 2 | . 2 . . . Fabricators . | . . . . . Repair Stations . | . . . . . Recycling Units . | . . . . . Scanalyzers . | . . . . . Garrison Access . | . . . . . Total Hacks 3 | . 3 . . . Successful 3 | . 3 . . . Failed . | . . . . . Catastrophic . | . . . . . Database Lockouts . | . . . . . Manual . | . . . . . Terminals 3 | . 3 . . . Fabricators . | . . . . . Repair Stations . | . . . . . Recycling Units . | . . . . . Scanalyzers . | . . . . . Garrison Access . | . . . . . Terminal Hacks 3 | . 3 . . . Prototype ID Bank 2 | . 2 . . . Zone Layout 1 | . 1 . . . Fabricator Hacks . | . . . . . Repair Station Hacks . | . . . . . Recycling Unit Hacks . | . . . . . Scanalyzer . | . . . . . Garrison Access Hacks . | . . . . . Unauthorized Hacks . | . . . . . Terminals . | . . . . . Fabricators . | . . . . . Repair Stations . | . . . . . Recycling Units . | . . . . . Scanalyzers . | . . . . . Garrison Access . | . . . . . Data Cores Recovered . | . . . . . Used . | . . . . . Hacking Detections 1 | . 1 . . . Full Trace Events . | . . . . . Feedback Events . | . . . . . Feedback Blocked . | . . . . . Robot Schematics Acquired . | . . . . . Robots Built . | . . . . . Authchips . | . . . . . Time . | . . . . . Total Robot Build Rating . | . . . . . Part Schematics Acquired . | . . . . . Parts Built . | . . . . . Authchips . | . . . . . Time . | . . . . . Total Part Build Rating . | . . . . . Parts Repaired . | . . . . . Time . | . . . . . Parts Recycled . | . . . . . Recycled Matter . | . . . . . Retrieved Matter . | . . . . . Retrieved Components . | . . . . . Parts Scanalyzed . | . . . . . Part Schematics Acquired . | . . . . . Parts Damaged . | . . . . . Bothacking | -11 -10 -10 -9 -9 ------------ Run | Jun Mat Min Mat Min Used RIF Installer . | . . . . . Robots Hacked . | . . . . . Non-combat . | . . . . . Combat . | . . . . . Robot Hacks Applied . | . . . . . Relay Couplers Released . | . . . . . Fabnet Peak Effective % . | . . . . . Robots Rewired . | . . . . . Allies Hacked . | . . . . . Hacks Repelled . | . . . . . Allies | -11 -10 -10 -9 -9 -------- Run | Jun Mat Min Mat Min Total Allies . | . . . . . Largest Group . | . . . . . Highest-Rated Group . | . . . . . Highest-Rated Ally . | . . . . . Total Orders . | . . . . . Ally Attacks . | . . . . . Total Damage . | . . . . . Kills . | . . . . . Allies Corrupted . | . . . . . Allies Melted . | . . . . . Intel | -11 -10 -10 -9 -9 ------- Run | Jun Mat Min Mat Min Robot Analysis Total . | . . . . . Derelict Logs Recovered 1 | . . 1 . . Drone Launches . | . . . . . Drone Recoveries . | . . . . . Exploration | -11 -10 -10 -9 -9 ------------- Run | Jun Mat Min Mat Min Turns Passed 1992 | 84 389 873 614 32 Spaces Moved 1440 | 54 276 739 358 13 Core 16 | 4 . . . 12 Treads 24 | . . . 24 . Legs 543 | 50 276 217 . . Wheels 786 | . . 522 264 . Hover 71 | . . . 70 1 Flight . | . . . . . Fastest Speed 50 | 50 120 80 80 50 Average Speed 102 | 114 120 95 101 54 Slowest Speed 250 | 120 120 190 250 112 Overloaded Moves . | . . . . . Propulsion Burnouts . | . . . . . Robots Hopped . | . . . . . Cave-ins Triggered . | . . . . . Exploration Rate (%) 40 | 3 55 97 36 13 Regions Visited 4 Branch Regions 2 Pre-discovered Areas . | . . . . . Known Exits Taken 1 | . . . 1 . Unknown Exits Taken 3 | 1 1 1 . . Scrap Searched 1 | . . 1 . . Spaces Dug . | . . . . . Terrain Destroyed 2 | . . . . 2 Melee . | . . . . . Projectile 2 | . . . . 2 AOE . | . . . . . Terrain Rammed . | . . . . . Walls Destroyed . | . . . . . Machines Disabled . | . . . . . Actions | -11 -10 -10 -9 -9 --------- Run | Jun Mat Min Mat Min Total 1725 | 70 309 825 498 23 Wait 48 | . 4 10 34 . Move 1436 | 53 275 738 357 13 Hop . | . . . . . Pick Up 23 | 9 6 3 5 . Fast Attach 16 | . 2 4 10 . Attach 13 | 5 2 2 4 . Detach 2 | . . . 2 . Swap 6 | . 2 1 3 . Drop 20 | . 4 5 11 . Fire 129 | 3 14 44 61 7 Melee . | . . . . . Ram 25 | . . 12 10 3 Kick 6 | . . 6 . . Crush . | . . . . . Escape Stasis . | . . . . . Rewire . | . . . . . Trap 1 | . . . 1 . Miscellaneous . | . . . . . Route ------- -11/Junkyard -10/Materials (discovered 4 exits: [*Mat x3] / [*Min]) -10/Mines (discovered 2 exits: [*Mat x2]) -9/Materials -9/Mines History --------- Turn | Location | Event 4 | -11/Junkyard | Discovered new exit (range 15) 85 | -11/Junkyard | Entered Materials 145 | -10/Materials | Discovered new exit (range 16) 313 | -10/Materials | Build established: Mutant 345 | -10/Materials | Discovered new exit (range 13) 440 | -10/Materials | Discovered new exit (range 4) 454 | -10/Materials | Discovered new exit (range 16) 474 | -10/Materials | Entered Mines 493 | -10/Mines | Met a Derelict bent on vengeance 507 | -10/Mines | Found a hidden stash of uninstalled traps 624 | -10/Mines | Discovered new exit (range 11) 738 | -10/Mines | Learned 4 Materials zone layouts 1062 | -10/Mines | Discovered new exit (range 4) 1201 | -10/Mines | Build established: Scavenger-Mutant 1310 | -10/Mines | Core integrity fell below 50% 1347 | -10/Mines | Entered Materials 1347 | -9/Materials | Evolved 2 slots: Propulsion x1, Utility x1 1348 | -9/Materials | Identified exit to Mines 1961 | -9/Materials | Entered Mines 1962 | -9/Mines | Assembled infested the area 1985 | -9/Mines | Core integrity fell below 50% 1990 | -9/Mines | Core integrity fell below 20% 1993 | -9/Mines | Destroyed by as-23379 with Assembled Heavy Rifle Last Messages --------------- 01962_ C-30 ARC bursts open, deploying its payload. 01962_ L-31 Rogue unfolds itself. 01962_ G-34 Mercenary unfolds itself. 01964_ L-31 Rogue destroyed. 01973_ G-34 Mercenary destroyed. 01980_ Sml. Storage Unit destroyed. 01981_ as-59557 destroyed. 01982_ Imp. Hover Unit destroyed. 01983_ as-41467 destroyed. 01984_ Slammed into as-31929. 01984_ Propulsion Shielding destroyed. 01984_ Imp. Hover Unit destroyed. 01985_ Acquired 14 matter. 01985_ Imp. Light Cannon destroyed. 01985_ Slammed into as-09425. 01986_ Imp. Hover Unit destroyed. 01986_ Hvy. Assault Rifle destroyed. 01986_ Slammed into as-05328. 01987_ Acquired 2 matter. 01987_ Cld. Ion Engine destroyed. Map ----- +----------------------------------------------------+ | ?????????????????????????????????????????????????? | | ?????????????????????????????????????????????????? | | ?????????????????????????????????????????????????? | | ?????????????????????????????????????????????????? | | ?????????????????????????????????????????????????? | | ?????????????????????????????????????????????????? | | ?????????????????????????????????????????????????? | | ?????????????????????????????????????????????????? | | ?????????????????????????????????????????????????? | | ?????????????????????????????????????????????????? | | ?????????????????????????????????????????????????? | | ?????????????????????????????????????????????????? | | ?????????????????????????????????????????????????? | | ?????????????????????????????????????????????????? | | ????????????????????????#####????????????????????? | | ????????????????????????#####????????????????????? | | ??????????????????????? ##????????????????????? | | ???????????????????????## ##????????????????????? | | ???????????????????????## ##????????????????????? | | ??????????????????????? ##????????????????????? | | ??????????????????????### ###???????????????????? | | ??????????????????????### ####??????????????????? | | ??????????????????????## ###??????????????????? | | ?????????????????????### ##??? ????????????? | | ????????????????????#### ### ##????????? | | ??????????????????##### @ ### ##????????? | | ?????????????????##### ###???????? | | ?????????????????### ##???????? | | ?????????????????## ##### ???????? | | ?????????????????## ######??? ?????????? | | ?????????????????## a ###?????????????????? | | ????????????????### aa #####?????????????????? | | ???????????????#### aa #####??????????????????? | | ???????????????### ####????????????????????? | | ???????????????## a##########??????????????? | | ???????????????## $ ###########??????????????? | | ???????????????### aaa### ##??????????????? | | ???????????????### a % ##??????????????? | | ????????????## ?### % *%%*##??????????????? | | ????????????## ####"!=%=[ ###?????????????? | | ????????????####### ######! "##?????????????? | | ????????????####### ##?############?????????????? | | ???????????????? #???###########?????????????? | | ???????????????? ####???????????????????????????? | | ???????????????? ####???????????????????????????? | | ??????????????? ????????????????????????????????? | | ?????????????? ????????????????????????????????? | | ????????????? ?????????????????????????????????? | | ?????????????? ??????????????????????????????????? | | ?????????????????????????????????????????????????? | +----------------------------------------------------+ Best States ------------- Heat Dissipation 28 Energy Generation 14 Energy Capacity 280 Matter Stores 300 Matter Capacity 300 Sight Range 16 Terrain Scan Density 10 Armor Coverage 150 Propulsion Shielding 33 Evasion (%) 55 Recoil Reduction 2 Item Schematics ----------------- None Robot Schematics ------------------ None Fabricated ------------ Nothing Alien Tech Used ----------------- None Achievements -------------- None Challenges ------------ None Game ------ Seed AlloyMetafiberPrototype Manual? 0 Play Time 00:21:27 Cumulative 21.2 hours Start 2023.04.04 @ 09:53:39 End 2023.04.04 @ 10:15:21 Sessions 1 Manual Loads 0 Difficulty Rogue Special Mode None Game No. 52 Rogue 52 Adventurer 0 Explorer 0 Win Type - Total 0 Types 0/0/0/0/0/0/0/0/0 Lore% 23 Gallery% 28 Achievement% 21 Wizard Run 0 Options --------- ASCII 0 Keyboard 0 Movement Mouse Keybinds 0 Fullscreen 1 Font 24/Smallcaps Map View 64x52 Tactical HUD 1 Map Filters NONE Filters NONE Steam 1 RUN: 05560916-e0f4-4843-adac-d895d1f8739e